{"text_format":"2","workbook":"xlsx","n_sheets":1,"sheets":["Sheet1"],"not_rendered":{"charts":0,"images":0,"macros":0,"external_links":0,"defined_names":2,"comments":0,"pivot_tables":0},"unopened":[],"bounds":{"document_bytes":16777216,"sheet_cells":100000,"run_cost":"one","rows_first":2000,"rows_last":500,"rows_between":2000,"halvings":0,"cell_chars":16384,"cell_head_chars":4096},"cells_cut":0,"cells_raw":0,"read":"whole","date_system":"1900"}

{"sheet":"Sheet1","index":0,"n_rows":70,"n_cols":7,"rows_kept":70,"cut":false,"hidden":false,"merged":[[37,1,38,1],[37,2,38,2],[39,1,48,1],[49,1,69,1],[15,1,16,1],[15,2,16,2],[34,1,36,1],[34,2,36,2],[17,1,33,1],[0,0,0,6],[10,1,11,1],[10,2,11,2],[12,1,13,1],[12,2,13,2],[4,1,8,1]]}
["2022년 개인정보처리 위탁업무 목록"]
[]
["No","담당처","담당부","위탁업무","위탁내용","수탁업체명","계약기간"]
[{"$f":"COUNTA($D$4:D4)","v":1},"인재개발원","경영정보부","정보시스템 통합유지보수","정보시스템 통합 유지관리","㈜미소아이티","업무처리 완료시까지"]
[{"$f":"COUNTA($D$4:D5)","v":2},"총무인사처","총무부","문서파쇄","보안문서 파쇄","㈜에스닥스","업무처리 완료시까지"]
[{"$f":"COUNTA($D$4:D6)","v":3},null,"노사협력부","단체상해보험","단체상해보험","현대해상화재보험","업무처리 완료시까지"]
[{"$f":"COUNTA($D$4:D7)","v":4},null,"총무부","콜센터 운영","콜센터 시스템 운영 관리","㈜서울정보시스템","업무처리 완료시까지"]
[{"$f":"COUNTA($D$4:D8)","v":5},null,"총무부","콜센터 운영","콜센터 인력 운영 관리","㈜세인씨엔에스","업무처리 완료시까지"]
[{"$f":"COUNTA($D$4:D9)","v":6},null,"총무부","시스템 유지보수","통합고객관리시스템 관리","비알주식회사","업무처리 완료시까지"]
[{"$f":"COUNTA($D$4:D10)","v":7},"청렴감사실","청렴윤리부","실태조사","2022년도 자체 청렴도 조사 용역","㈜케이스탯리서치","업무처리 완료시까지"]
[{"$f":"COUNTA($D$4:D11)","v":8},"경기도주거복지센터","주거복지센터운영팀","포털 운영 및 유지관리","2022년 경기주거복지포털 운영 및 유지관리 용역","㈜피씨엔","업무처리 완료시까지"]
[{"$f":"COUNTA($D$4:D12)","v":9},null,null,"포털 운영 및 유지관리","2021년 경기주거복지포털 운영 및 유지관리 용역","㈜피씨엔","업무처리 완료시까지"]
[{"$f":"COUNTA($D$4:D13)","v":10},"도시재생처","정비사업기획부","임차권 등 대위변제 지원","상담안내, 신청서류 접수, 이행계약 체결 등 관리","석정지엠㈜","업무처리 완료시까지"]
[{"$f":"COUNTA($D$4:D14)","v":11},null,null,"설문조사","설문조사 및 결과분석 수행, 홍보ㆍ상담ㆍ접수의 전략수립/실행","금일주식회사","업무처리 완료시까지"]
[{"$f":"COUNTA($D$4:D15)","v":12},"법무실","법무실","강제집행신청","소송채권 강제집행신청","법무법인 한결","업무처리 완료시까지"]
[{"$f":"COUNTA($D$4:D16)","v":13},"안전품질단","안전품질단","시스템 유지보수","안전방재, 환경 종합시스템 개발 및 유지보수","케이웨더㈜","업무처리 완료시까지"]
[{"$f":"COUNTA($D$4:D17)","v":14},null,null,"시스템 유지보수","안전방재, 환경 종합시스템 개발 및 유지보수","케이웨더㈜","업무처리 완료시까지"]
[{"$f":"COUNTA($D$4:D18)","v":15},"주택관리처","자산관리1부","시스템관리 ","주택청약시스템 개발 및 관리","엔디에스㈜","업무처리 완료시까지"]
[{"$f":"COUNTA($D$4:D19)","v":16},null,"주택관리2부","임대관리","김포한강 공공임대 위탁운영 및 관리","주택관리공단㈜","업무처리 완료시까지"]
[{"$f":"COUNTA($D$4:D20)","v":17},null,"주택공급1부","임대관리","매입임대주택 위탁운영 및 관리","주택관리공단㈜","업무처리 완료시까지"]
[{"$f":"COUNTA($D$4:D21)","v":18},null,"주택공급1부","공급대행","매입임대주택 공급 및 계약관리","지엘디앤씨","업무처리 완료시까지"]
[{"$f":"COUNTA($D$4:D22)","v":19},null,"주택공급1부","공급대행","매입임대주택 공급 및 계약관리","아름드리개발","업무처리 완료시까지"]
[{"$f":"COUNTA($D$4:D23)","v":20},null,"주택공급1부","공급대행","행복주택 공급 및 계약관리","아름드리개발","업무처리 완료시까지"]
[{"$f":"COUNTA($D$4:D24)","v":21},null,"주택공급1부","공급대행","행복주택 입주자 선정 등 임대주택 관리 ","주택관리공단㈜","업무처리 완료시까지"]
[{"$f":"COUNTA($D$4:D25)","v":22},null,"주택공급1부","임대관리","행복주택 입주자 선정 등 임대주택 관리 ","코오롱하우스비전","업무처리 완료시까지"]
[{"$f":"COUNTA($D$4:D26)","v":23},null,"주택공급1부","임대관리","행복주택 입주자 선정 등 임대주택 관리 ","대우에스티","업무처리 완료시까지"]
[{"$f":"COUNTA($D$4:D27)","v":24},null,"주택공급1부","임대관리","행복주택 입주자 선정 등 임대주택 관리 ","자이S&D","업무처리 완료시까지"]
[{"$f":"COUNTA($D$4:D28)","v":25},null,"주택공급1부","임대관리","행복주택 입주자 선정 등 임대주택 관리 ","동원건설산업","업무처리 완료시까지"]
[{"$f":"COUNTA($D$4:D29)","v":26},null,"주택공급1부","임대관리","행복주택 입주자 선정 등 임대주택 관리 ","리베토코리아","업무처리 완료시까지"]
[{"$f":"COUNTA($D$4:D30)","v":27},null,"주택공급1부","임대관리","행복주택 입주자 선정 등 임대주택 관리 ","GHP파트너즈","업무처리 완료시까지"]
[{"$f":"COUNTA($D$4:D31)","v":28},null,"주택공급2부","임대관리","수원광교 공공실버주택 위탁운영 및 관리","대우에스티","업무처리 완료시까지"]
[{"$f":"COUNTA($D$4:D32)","v":29},null,"주택공급1부","임대관리","공공임대주택 위탁운영 및 관리\n(다산진건A1,진건A4,지금A1,안성공도,하남풍산)","주택관리공단㈜","업무처리 완료시까지"]
[{"$f":"COUNTA($D$4:D33)","v":30},null,"주택공급2부","임대관리","공공임대주택 위탁운영 및 관리\n(다산진건A1,진건A4,지금A1,안성공도,하남풍산)","주택관리공단㈜","업무처리 완료시까지"]
[{"$f":"COUNTA($D$4:D34)","v":31},null,"주택공급2부","임대관리","김포한강 공공임대 위탁운영 및 관리","주택관리공단㈜","업무처리 완료시까지"]
[{"$f":"COUNTA($D$4:D35)","v":32},"주택사업처","주택사업2부","공급대행","입주자 사전방문행사 업무를 위한 계약자 정보","㈜대우건설","업무처리 완료시까지"]
[{"$f":"COUNTA($D$4:D36)","v":33},null,null,"공급대행","입주자 사전방문행사 업무를 위한 계약자 정보","주식회사 상승피에프","업무처리 완료시까지"]
[{"$f":"COUNTA($D$4:D37)","v":34},null,null,"공급대행","입주자 사전방문행사 업무를 위한 계약자 정보","하우스앤피플 주식회사","업무처리 완료시까지"]
[{"$f":"COUNTA($D$4:D38)","v":35},"판교사업단","판교관리부","실태조사","판교 제2테크노밸리 입주기업체 실태조사 및 설문조사","경기리서치연구소","업무처리 완료시까지"]
[{"$f":"COUNTA($D$4:D39)","v":36},null,null,"건물종합관리","판교 제2테크노밸리 판교이노베이션랩 건물종합관리","㈜엘림비엠에스","업무처리 완료시까지"]
[{"$f":"COUNTA($D$4:D40)","v":37},"신도시보상처","용인보상부","지장물조사","경기용인 플랫폼시티 지장물 기본조사 용역","㈜리얼티뱅크감정평가법인","업무처리 완료시까지"]
[{"$f":"COUNTA($D$4:D41)","v":38},null,"용인보상부","설문조사","경기용인 플랫폼시티 대토보상 수요조사 용역","㈜리얼티뱅크감정평가법인","업무처리 완료시까지"]
[{"$f":"COUNTA($D$4:D42)","v":39},null,"창릉보상부","지장물조사","고양창릉 공공주택지구 지장물 추가조사 용역","㈜가온감정평가법인","업무처리 완료시까지"]
[{"$f":"COUNTA($D$4:D43)","v":40},null,"창릉보상부","감정평가","고양창릉 공공주택지구 감정평가 용역(사업시행자추천)","㈜가온감정평가법인","업무처리 완료시까지"]
[{"$f":"COUNTA($D$4:D44)","v":41},null,"창릉보상부","감정평가","고양창릉 공공주택지구 감정평가 용역(주민추천)","㈜공감감정평가법인","업무처리 완료시까지"]
[{"$f":"COUNTA($D$4:D45)","v":42},null,"교산과천보상부 \n과천보상사업소","지장물조사","하남교산 공공주택지구 지장물 기본조사 용역","㈜대화감정평가법인 북부지사","업무처리 완료시까지"]
[{"$f":"COUNTA($D$4:D46)","v":43},null,"교산과천보상부 \n과천보상사업소","지장물조사","하남교산 공공주택지구 지장물 기본조사 용역","주식회사 우림","업무처리 완료시까지"]
[{"$f":"COUNTA($D$4:D47)","v":44},null,"교산과천보상부 \n과천보상사업소","감정평가","하남교산 공공주택지구 감정평가 용역","㈜경일감정평가법인 경기지사","업무처리 완료시까지"]
[{"$f":"COUNTA($D$4:D48)","v":45},null,"교산과천보상부 \n과천보상사업소","감정평가","하남교산 공공주택지구 감정평가 용역","㈜하나감정평가법인 동부지사","업무처리 완료시까지"]
[{"$f":"COUNTA($D$4:D49)","v":46},null,"교산과천보상부 \n과천보상사업소","지장물 기본조사","과천과천 공공주택지구 조성사업 지장물 기본조사 용역","㈜대화감정평가법인","업무처리 완료시까지"]
[{"$f":"COUNTA($D$4:D50)","v":47},"주거복지처","전세임대1부","시스템 유지보수","전세임대 기금연계관리시스템 유지보수","㈜ 아이앤씨솔루선","업무처리 완료시까지"]
[{"$f":"COUNTA($D$4:D51)","v":48},null,"전세임대1부","시스템 유지보수","전세임대 기금연계관리시스템 유지보수","씨앤에프시스템㈜","업무처리 완료시까지"]
[{"$f":"COUNTA($D$4:D52)","v":49},null,"주거복지사업부","기존주택 매입임대 \n매입조건 점검용역","매입 예정주택 사전 현장점검","명인건설기술원","업무처리 완료시까지"]
[{"$f":"COUNTA($D$4:D53)","v":50},null,"주거복지사업부","기존주택 매입임대 \n사업 등기 대행업무","기존주택 매입임대사업 관련 등기업무 대행","한마음 법무사 사무소","업무처리 완료시까지"]
[{"$f":"COUNTA($D$4:D54)","v":51},null,"주거복지사업부","주택개조사업 공사","햇살하우징사업 공사(1권역)","신화건설㈜","업무처리 완료시까지"]
[{"$f":"COUNTA($D$4:D55)","v":52},null,"주거복지사업부","주택개조사업 공사","햇살하우징사업 공사(2권역)","민우엠앤씨㈜","업무처리 완료시까지"]
[{"$f":"COUNTA($D$4:D56)","v":53},null,"주거복지사업부","주택개조사업 공사","햇살하우징사업 공사(3권역)","세원종합개발㈜","업무처리 완료시까지"]
[{"$f":"COUNTA($D$4:D57)","v":54},null,"주거복지사업부","주택개조사업 공사","햇살하우징사업 공사(4권역)","대우씨앤엠㈜","업무처리 완료시까지"]
[{"$f":"COUNTA($D$4:D58)","v":55},null,"주거복지사업부","주택개조사업 공사","햇살하우징사업 공사(5권역)","㈜예일에이앤에스디","업무처리 완료시까지"]
[{"$f":"COUNTA($D$4:D59)","v":56},null,"주거복지사업부","주택개조사업 공사","햇살하우징사업 공사(6권역)","㈜숨컴퍼니","업무처리 완료시까지"]
[{"$f":"COUNTA($D$4:D60)","v":57},null,"주거복지사업부","주택개조사업 공사","햇살하우징사업 공사(7권역)","협동조합 위드","업무처리 완료시까지"]
[{"$f":"COUNTA($D$4:D61)","v":58},null,"주거복지사업부","주택개조사업 공사","햇살하우징사업 공사(8권역)","㈜조은인테리어","업무처리 완료시까지"]
[{"$f":"COUNTA($D$4:D62)","v":59},null,"주거복지사업부","공사완료 점검용역","햇살하우징사업 공사 완료 점검","에이스이앤지","업무처리 완료시까지"]
[{"$f":"COUNTA($D$4:D63)","v":60},null,"주거복지사업부","에너지효율진단","햇살하우징사업 대상세대 에너지효율 진단","㈜대명기술단","업무처리 완료시까지"]
[{"$f":"COUNTA($D$4:D64)","v":61},null,"주거복지사업부","주택개조사업 공사","중증장애인 주택개조사업 공사(1권역)","㈜영도이엔씨","업무처리 완료시까지"]
[{"$f":"COUNTA($D$4:D65)","v":62},null,"주거복지사업부","주택개조사업 공사","중증장애인 주택개조사업 공사(2권역)","주식회사 다솜이앤지","업무처리 완료시까지"]
[{"$f":"COUNTA($D$4:D66)","v":63},null,"주거복지사업부","주택개조사업 공사","중증장애인 주택개조사업 공사(3권역)","㈜동우건설","업무처리 완료시까지"]
[{"$f":"COUNTA($D$4:D67)","v":64},null,"주거복지사업부","주택개조사업 공사","중증장애인 주택개조사업 공사(4권역)","주식회사 케이비건설","업무처리 완료시까지"]
[{"$f":"COUNTA($D$4:D68)","v":65},null,"주거복지사업부","주택개조사업 공사","중증장애인 주택개조사업 공사(5권역)","㈜두성","업무처리 완료시까지"]
[{"$f":"COUNTA($D$4:D69)","v":66},null,"주거복지사업부","주택개조사업 공사","중증장애인 주택개조사업 공사(6권역)","㈜제일디자인","업무처리 완료시까지"]
[{"$f":"COUNTA($D$4:D70)","v":67},null,"주거복지사업부","공사완료 점검용역","중증장애인 주택개조사업 공사 완료 점검","한국편의시설기술원","업무처리 완료시까지"]